bitfinex/quotes_ETHUSD_20250908
["timestamp","ask_amount","ask_price","bid_price","bid_amount"]
[1757324623572,0.001,4315.1,4315.0,7.28948526]
[1757324625347,0.001,4315.1,4315.0,7.28948526]
[1757324632284,0.001,4315.1,4315.0,10.28948526]
[1757324634499,0.001,4315.1,4315.0,10.28548526]
[1757324634995,0.0002,4315.1,4315.0,10.28548526]
[1757324656235,0.0002,4315.1,4315.0,10.27848526]
[1757324656455,0.0002,4315.1,4315.0,6.31748526]
[1757324656848,0.0002,4315.1,4315.0,10.27848526]
[1757324660457,0.0004,4315.3,4315.2,6.10938969]
[1757324660653,0.0004,4315.3,4315.2,17.38301391]
[1757324661544,0.0004,4315.3,4315.2,17.47580056]
[1757324662285,0.0004,4315.3,4315.2,19.25580056]
[1757324670099,0.0004,4315.3,4315.2,15.29580056]
[1757324670308,0.0004,4315.3,4315.2,19.25280056]
[1757324675290,0.0004,4315.3,4315.2,19.25180056]
[1757324676475,0.0004,4315.3,4315.2,1.87278665]
[1757324676682,0.0004,4315.3,4315.2,4.04778665]
[1757324676993,0.0004,4315.3,4315.2,4.747]
[1757324678801,0.0004,4315.3,4315.2,7.06438969]
[1757324679996,0.0004,4315.3,4315.2,4.83980732]
[1757324683420,0.0004,4315.3,4315.2,7.15719701]
[1757324683999,0.0004,4315.3,4315.2,0.88480732]
[1757324684200,0.0004,4315.3,4315.2,4.83780732]
[1757324684394,0.0004,4315.3,4315.2,11.02897032]
[1757324684594,0.0004,4315.3,4315.2,13.34636001]
[1757324685923,0.0006,4315.6,4315.2,13.34636001]
[1757324686689,0.0006,4315.6,4315.3,2.31733133]
[1757324686918,0.0006,4315.6,4315.4,3.953]
[1757324687320,0.0006,4315.6,4315.5,9.30039159]
[1757324687527,0.0006,4315.6,4315.5,9.41559159]
[1757324688232,0.0006,4315.6,4315.5,9.50837932]
[1757324690354,0.0006,4315.6,4315.5,3.31721632]
[1757324690652,0.0006,4315.6,4315.5,9.50837932]
[1757324691965,0.0006,4315.6,4315.5,0.20798773]
[1757324692163,0.0006,4315.6,4315.5,6.47621632]
[1757324692471,0.0006,4315.6,4315.5,7.26821632]
[1757324711285,0.0008,4315.7,4315.6,3.1091749]
[1757324711590,0.0008,4315.7,4315.6,9.32350964]
[1757324711781,0.0008,4315.7,4315.6,9.3003379]
[1757324712183,0.0008,4315.7,4315.6,9.39311573]
[1757324712619,0.02,4315.9,4315.8,6.10906751]
[1757324712830,0.02,4315.9,4315.8,10.05406751]
[1757324713619,0.026,4316.8,4316.4,6.10874543]
[1757324713923,0.026,4316.8,4316.4,18.02490843]
[1757324714442,0.02,4316.9,4316.6,0.792]
[1757324714653,0.001,4317.3,4316.9,9.2996401]
[1757324714811,0.001,4317.3,4316.9,16.2446401]
[1757324715440,0.001,4317.7,4317.6,3.10810153]
[1757324715736,0.001,4317.7,4317.6,8.83210153]
[1757324716142,0.001,4317.7,4317.6,15.02326453]
[1757324716327,0.001,4317.7,4317.6,15.11600084]
[1757324716533,0.001,4317.7,4317.6,2.66473631]
[1757324716708,0.001,4317.7,4317.6,5.81673631]
[1757324717521,0.001,4317.7,4317.6,8.92483784]
[1757324718348,0.001,4317.7,4317.6,6.60873631]
[1757324718716,0.001,4317.7,4317.6,8.92483784]
[1757324720956,0.001,4317.7,4317.6,0.09273631]
[1757324721265,2.31610153,4317.6,4316.8,3.476]
[1757324721446,0.09276449,4318.0,4317.5,3.0]
[1757324721755,0.02,4318.9,4316.9,5.256]
[1757324721756,2.33540444,4318.9,4317.7,6.191163]
[1757324721964,2.31563201,4318.5,4317.7,3.942]
[1757324722176,0.025,4318.8,4317.7,6.25804789]
[1757324722348,0.025,4318.8,4317.7,7.05004789]
[1757324722542,0.1152,4318.4,4317.7,7.2579971]
[1757324724364,0.026,4317.8,4317.7,7.2579971]
[1757324725853,0.026,4317.8,4317.7,13.4491601]
[1757324728670,0.026,4317.8,4317.7,7.2579971]
[1757324728873,0.026,4317.8,4317.7,13.4491601]
[1757324730377,0.026,4317.8,4317.7,15.2291601]
[1757324734307,0.001,4318.3,4317.9,2.31594061]
[1757324734504,0.001,4318.3,4318.2,15.49010572]
[1757324734712,0.001,4318.3,4318.2,13.23894272]
[1757324734882,0.001,4318.3,4318.2,7.04777972]
[1757324735215,0.001,4318.3,4318.2,13.33166463]
[1757324736219,0.001,4318.7,4318.3,3.792]
[1757324736428,0.001,4318.7,4318.6,9.29872822]
[1757324736712,0.001,4318.7,4318.6,15.01872822]
[1757324736874,0.0002,4318.7,4318.6,15.01872822]
[1757324737073,0.0002,4318.7,4318.6,15.11144325]
[1757324737273,0.0002,4318.7,4318.6,18.11144325]
[1757324738016,2.33437295,4320.9,4319.7,3.10697557]
[1757324738177,2.33434938,4320.9,4319.7,13.23713857]
[1757324738520,0.02,4320.9,4319.7,13.23713857]
[1757324738719,0.02,4320.9,4320.6,0.792]
[1757324738931,0.02,4320.9,4320.6,10.922163]
[1757324739990,0.02,4320.9,4320.7,1.48715006]
[1757324740202,2.3343823,4320.9,4320.7,0.69515006]
[1757324740426,2.57532445,4320.8,4320.7,0.69515006]
[1757324740592,2.57532445,4320.8,4320.1,3.939]
[1757324740593,0.26093823,4320.8,4320.1,3.939]
[1757324740981,0.26093823,4320.8,4319.9,0.69528216]
[1757324741182,0.26093823,4320.8,4320.3,6.191163]
[1757324741380,0.025,4320.8,4320.3,3.939]
[1757324741791,0.025,4320.8,4320.3,10.130163]
[1757324741999,0.025,4320.8,4320.6,6.191163]
[1757324742533,0.025,4320.8,4320.7,3.938]
[1757324743603,0.026,4320.8,4320.7,3.938]
[1757324747461,2.31443978,4320.7,4320.6,0.1152]
[1757324747617,2.70314414,4320.8,4320.4,3.937]
[1757324747961,0.38874439,4320.8,4320.4,3.937]
[1757324748146,0.1412,4320.8,4320.4,3.937]
[1757324748350,2.45563077,4320.8,4320.4,3.937]
[1757324748820,2.31445079,4320.7,4320.4,3.937]
[1757324749023,2.45559084,4320.8,4320.4,3.937]
[1757324749240,0.24755908,4320.7,4320.4,3.937]
[1757324750321,2.56200743,4320.7,4320.4,3.937]
[1757324750521,0.24755908,4320.7,4320.4,3.937]
[1757324750863,0.24755908,4320.7,4320.0,0.36275908]
[1757324751060,2.31449335,4320.6,4319.7,0.792]
[1757324751361,2.31476988,4320.1,4319.8,3.937]
[1757324751519,0.34667699,4320.0,4319.8,3.937]
[1757324752615,2.31486839,4319.9,4319.3,0.1152]
[1757324752818,2.31503539,4319.6,4319.3,3.936]
[1757324753059,2.43023539,4319.6,4319.3,3.936]
[1757324753227,0.1152,4319.6,4319.3,3.936]
[1757324753433,2.31508569,4319.5,4319.3,3.936]
[1757324753671,0.24301378,4319.6,4318.8,1.804]
[1757324753965,0.1152,4319.2,4318.8,1.804]
[1757324754169,2.4304548,4319.2,4318.9,3.936]
[1757324754322,0.1152,4319.2,4318.9,3.936]
[1757324755553,2.31534155,4319.1,4318.9,3.936]
[1757324755924,0.1152,4319.2,4318.9,3.936]
[1757324756345,2.43049501,4319.2,4318.9,3.936]
[1757324756550,2.31530119,4319.1,4318.8,1.804]
[1757324756757,0.2430495,4319.1,4318.8,5.74]
[1757324756934,0.1152,4319.2,4318.8,5.74]
[1757324759711,0.1152,4319.2,4318.9,3.936]
[1757324760414,2.31533964,4319.1,4318.9,3.936]
[1757324760706,0.1152,4319.2,4318.9,3.936]
[1757324761488,0.1152,4319.5,4319.0,0.0231535]
[1757324761703,0.1152,4319.5,4318.9,6.2514036]
[1757324761883,0.1152,4319.5,4318.9,3.936]
[1757324762088,0.1144,4319.5,4318.9,3.936]
[1757324762458,2.42948398,4319.5,4318.9,3.936]
[1757324763692,0.1144,4319.5,4318.9,6.25139252]
[1757324764088,0.1144,4319.5,4318.9,3.936]
[1757324764615,2.42949535,4319.5,4318.9,3.936]
[1757324766509,2.42949535,4319.5,4318.9,6.25138462]
[1757324766510,0.1144,4319.5,4318.9,6.25138462]
[1757324767107,0.1144,4319.5,4318.9,3.936]
[1757324767304,0.1144,4319.5,4318.9,6.25137857]
[1757324767510,0.1144,4319.5,4318.9,3.936]
[1757324767736,0.1144,4319.5,4318.9,6.25137905]
[1757324768044,7.29709325,4319.3,4318.8,0.027]
[1757324768214,2.31540438,4318.9,4318.8,0.027]
[1757324775533,3.00057435,4319.4,4318.8,0.027]
[1757324775534,0.512822,4319.4,4318.8,0.027]
[1757324775733,2.3153124,4319.1,4318.8,0.027]
[1757324776049,2.31535442,4319.0,4318.8,0.027]
[1757324776246,2.31518996,4319.3,4318.8,0.027]
[1757324776467,2.31536344,4319.0,4318.8,0.027]
[1757324776965,2.31525496,4319.2,4318.8,0.027]
[1757324777464,2.3153915,4319.0,4318.8,0.027]
[1757324777625,2.31525496,4319.2,4318.8,0.027]
[1757324777965,2.31540438,4318.9,4318.8,0.027]
[1757324778666,0.1152,4319.1,4318.8,0.027]
[1757324779733,2.43051866,4319.1,4318.8,0.027]
[1757324779933,0.1152,4319.1,4318.8,0.027]
[1757324780139,2.43050612,4319.1,4318.8,0.027]
[1757324781859,0.1152,4319.1,4318.8,0.027]
[1757324782719,2.31520412,4319.3,4318.8,0.027]
[1757324783375,2.31525015,4319.2,4318.8,0.027]
[1757324783727,2.3153057,4319.1,4318.8,0.027]
[1757324784983,2.31518996,4319.3,4318.8,0.027]
[1757324785145,2.82796732,4319.4,4318.8,0.027]
[1757324785667,2.31529426,4319.2,4318.8,0.027]
[1757324785910,2.31530626,4319.1,4318.8,0.027]
[1757324787040,2.3152577,4319.2,4318.8,0.027]
[1757324787678,2.31529787,4319.1,4318.8,0.027]
[1757324788387,0.512822,4319.4,4318.8,0.027]
[1757324788572,0.1152,4319.1,4318.8,0.027]
[1757324788776,2.31539883,4319.0,4318.8,0.027]
[1757324789097,2.31535077,4319.0,4318.8,0.027]
[1757324789370,2.31540438,4318.9,4318.8,0.027]
[1757324792567,2.31529716,4319.1,4318.8,0.027]
[1757324792761,2.9913972,4319.1,4318.8,0.027]
[1757324793495,2.31540438,4318.9,4318.8,0.027]
[1757324798516,0.1152,4319.0,4318.8,0.027]
[1757324800100,2.31540438,4318.9,4318.8,0.027]
[1757324803226,2.4305967,4319.0,4318.8,0.027]
[1757324803402,0.1152,4319.1,4318.8,0.027]
[1757324803984,0.001,4319.2,4318.8,0.027]
[1757324804307,0.001,4319.2,4318.8,0.0503]
[1757324804502,0.001,4319.2,4318.9,0.792]
[1757324807723,2.31625732,4319.2,4318.9,0.792]
[1757324808712,0.001,4319.2,4318.9,0.792]
[1757324808912,2.31625216,4319.2,4318.9,0.792]
[1757324810910,0.001,4319.2,4318.9,0.792]
[1757324811247,2.31625341,4319.2,4318.9,0.792]
[1757324812940,2.3162457,4319.2,4318.9,0.792]
[1757324813145,2.3154457,4319.2,4318.9,0.792]
[1757324813346,0.0002,4319.2,4318.9,0.792]
[1757324816448,0.0002,4319.2,4318.9,3.10739859]
[1757324816638,0.0002,4319.2,4318.9,0.792]
[1757324818616,0.0002,4319.2,4319.1,2.31529716]
[1757324818820,0.0002,4319.2,4319.1,3.10729716]
[1757324819021,0.0002,4319.2,4319.1,6.10729716]
[1757324819347,0.0002,4319.2,4319.1,6.20000768]
[1757324827364,0.0002,4319.2,4319.1,6.55000768]
[1757324828786,0.0002,4319.2,4319.1,6.66520768]
[1757324830567,0.0002,4319.2,4319.1,16.77286666]
[1757324837689,0.001,4319.5,4319.4,3.10713636]
[1757324837913,0.001,4319.5,4319.4,16.3521467]
[1757324838113,0.001,4319.5,4319.4,16.32899534]
[1757324838518,0.0002,4319.5,4319.4,16.4216803]
[1757324853159,0.001,4319.7,4319.6,6.10702916]
[1757324853324,0.001,4319.7,4319.6,10.02902916]
[1757324853941,0.001,4319.7,4319.6,10.12170768]
[1757324856032,0.001,4319.7,4319.6,16.30336666]
[1757324856359,0.001,4319.7,4319.6,10.12170768]
[1757324856566,0.001,4319.7,4319.6,6.19970768]
[1757324856866,0.001,4319.7,4319.6,16.30236666]
[1757324863328,0.001,4319.7,4319.6,16.30136666]
[1757324863950,0.0002,4319.7,4319.6,16.30136666]
[1757324868373,0.0002,4319.7,4319.6,17.41486701]
[1757324869475,0.0002,4319.7,4319.6,13.49486701]
[1757324869641,0.0002,4319.7,4319.6,17.41286701]
[1757324877360,0.0002,4319.7,4319.6,19.19086701]
[1757324878648,0.0002,4319.7,4319.6,19.19086701]
[1757324880312,0.0002,4319.7,4319.6,7.97770768]
[1757324880484,0.0002,4319.7,4319.6,4.18570768]
[1757324880829,0.0002,4319.7,4319.6,11.89370768]
[1757324886510,0.0002,4319.7,4319.6,7.97770768]
[1757324886715,0.0002,4319.7,4319.6,19.18886701]
[1757324887595,0.0002,4319.7,4319.6,5.66267852]
[1757324887894,0.0002,4319.7,4319.6,11.10070768]
[1757324888128,0.0002,4319.7,4319.6,11.89270768]
[1757324888613,0.0002,4319.7,4319.6,11.10070768]
[1757324888929,0.0002,4319.7,4319.6,11.89270768]
[1757324889293,0.0004,4320.0,4319.9,0.792]
[1757324889493,0.0004,4320.0,4319.9,4.707]
[1757324889825,0.0004,4320.0,4319.9,7.02186839]
[1757324890129,0.0004,4320.0,4319.9,7.11456817]
[1757324890636,0.0004,4320.0,4319.9,4.91489978]
[1757324891336,0.0004,4320.0,4319.9,7.22976817]
[1757324891828,0.0004,4320.0,4319.9,4.91489978]
[1757324894975,0.23200613,4320.0,4319.9,0.09269978]
[1757324895178,0.23200613,4320.0,4319.6,1.78]
[1757324895179,0.0004,4320.0,4319.6,1.78]
[1757324895484,0.0004,4320.0,4319.7,3.914]
[1757324896449,2.31521954,4320.0,4319.7,3.914]
[1757324896645,0.24314195,4319.9,4319.6,1.78]
[1757324896942,2.31497557,4319.7,4319.6,3.916]
[1757324897179,2.31497557,4319.7,4319.6,0.002]
[1757324897537,2.43010954,4319.9,4319.6,0.002]
[1757324898260,0.1152,4319.9,4319.6,0.002]
[1757324898484,2.31497052,4319.8,4319.6,0.002]
[1757324898723,0.24305705,4319.7,4319.6,0.002]
[1757324899145,2.55803262,4319.7,4319.6,0.002]
[1757324905185,0.24305705,4319.7,4319.6,0.002]
[1757324905379,0.1152,4319.8,4319.6,0.002]
[1757324906755,2.43012279,4319.8,4319.6,0.002]
[1757324907156,2.31497557,4319.7,4319.6,0.002]
[1757324907690,2.43012964,4319.8,4319.6,0.002]
[1757324908054,0.1152,4319.8,4319.6,0.002]
[1757324908471,2.31497557,4319.7,4319.6,0.002]
[1757324909296,2.78951587,4319.7,4319.6,0.002]
[1757324911556,0.4745403,4319.7,4319.6,0.002]
[1757324911762,0.1152,4319.7,4319.6,0.002]
[1757324912382,2.43017557,4319.7,4319.6,0.002]
[1757324913208,0.1152,4319.7,4319.6,0.002]
[1757324913821,2.43017557,4319.7,4319.6,0.002]
[1757324914899,2.42937557,4319.7,4319.6,0.002]
[1757324916486,0.1144,4319.7,4319.6,0.002]
[1757324917288,3.9114,4320.0,4319.6,0.002]
[1757324917561,2.31487624,4319.9,4319.6,0.002]
[1757324917763,2.31492687,4319.8,4319.6,0.002]
[1757324918482,0.1156,4320.0,4319.6,0.002]
[1757324919899,2.43041642,4320.0,4319.6,0.002]
[1757324920081,0.0004,4320.0,4319.6,0.002]
[1757324920263,0.0004,4320.0,4319.7,0.9072]
[1757324920668,0.0004,4320.0,4319.7,1.60247733]
[1757324925168,2.31490459,4319.9,4319.6,0.002]
[1757324925363,2.31522958,4320.0,4319.6,0.002]
[1757324925708,0.47501503,4320.0,4319.6,0.69732568]
[1757324925912,2.3149728,4319.8,4319.6,0.002]
[1757324926400,2.31524135,4320.0,4319.6,0.47701503]
[1757324926401,2.31486839,4319.9,4319.6,0.47701503]
[1757324926601,2.31497494,4319.8,4319.6,0.47701503]
[1757324927204,0.1152,4319.9,4319.6,0.002]
[1757324927709,2.43007062,4319.9,4319.6,0.002]
[1757324928001,2.31497557,4319.7,4319.6,0.002]
[1757324929611,0.63404706,4319.8,4319.6,0.002]
[1757324929812,0.1152,4319.9,4319.6,0.002]
[1757324929992,2.43011191,4319.9,4319.6,0.002]
[1757324930406,2.31493118,4319.8,4319.6,0.002]
[1757324930588,2.31497557,4319.7,4319.6,0.002]
[1757324931896,2.31493345,4319.8,4319.6,0.002]
[1757324932874,2.31497557,4319.7,4319.6,0.002]
[1757324933871,2.68304768,4319.7,4319.6,0.002]
[1757324936008,6.59204768,4319.7,4319.6,0.002]
[1757324940186,6.59124768,4319.7,4319.6,0.002]
[1757324943833,4.27707211,4319.7,4319.6,0.002]
[1757324944025,0.1152,4319.7,4319.6,0.002]
[1757324944228,2.43017557,4319.7,4319.6,0.002]
[1757324946534,0.1152,4319.7,4319.6,0.002]
[1757324947030,2.43017557,4319.7,4319.6,0.002]
[1757324948832,0.1152,4319.7,4319.6,0.002]
[1757324949031,0.1156,4320.0,4319.6,0.002]
[1757324949235,0.40226,4319.9,4319.6,0.002]
[1757324949402,6.22092198,4319.8,4319.6,0.002]
[1757324949597,2.31497557,4319.7,4319.6,0.002]
[1757324949903,0.40226,4319.9,4319.6,0.002]
[1757324950138,3.906,4319.7,4319.6,0.002]
[1757324950332,0.1152,4319.8,4319.6,0.002]
[1757324950542,0.0004,4320.0,4319.6,0.794]
[1757324951014,0.0004,4320.0,4319.6,0.002]
[1757324951214,0.001,4319.7,4319.6,0.002]
[1757324955124,2.31597557,4319.7,4319.6,0.002]
[1757324955739,0.001,4319.7,4319.6,0.002]
[1757324955942,2.31597557,4319.7,4319.6,0.002]
[1757324957341,2.79062056,4319.7,4319.6,0.002]
[1757324958520,6.69562056,4319.7,4319.6,0.002]
[1757324959546,2.79062056,4319.7,4319.6,0.002]
[1757324965466,8.97025937,4319.7,4319.6,0.002]
[1757324965670,12.18641958,4319.7,4319.6,0.002]
[1757324965963,12.68631572,4319.7,4319.6,0.002]
[1757324966574,12.81645805,4319.7,4319.6,0.002]
[1757324967350,12.92941192,4319.7,4319.6,0.002]
[1757324967656,2.31524356,4319.2,4319.1,1e-08]
[1757324967854,9.43620377,4319.2,4319.1,1e-08]
[1757324968184,9.93609991,4319.2,4319.1,1e-08]
[1757324971454,9.43620377,4319.2,4319.1,1e-08]
[1757324973368,9.43559015,4319.2,4319.1,1e-08]
[1757324973574,10.61994138,4319.2,4319.1,1e-08]
[1757324973981,10.40359479,4319.2,4319.1,1e-08]
[1757324974700,10.40259479,4319.2,4319.1,1e-08]
[1757324977084,1.18435123,4319.2,4319.1,1e-08]
[1757324977411,6.21824356,4319.2,4319.1,1e-08]
[1757324986326,6.21924356,4319.2,4319.1,1e-08]
[1757324989707,6.21724356,4319.2,4319.1,1e-08]
[1757324991208,6.21644356,4319.2,4319.1,1e-08]
[1757324991402,7.06960166,4319.2,4319.1,1e-08]
[1757325000013,7.07040166,4319.2,4319.1,1e-08]
[1757325000333,6.21724356,4319.2,4319.1,1e-08]
[1757325000903,3.9,4319.2,4319.1,1e-08]
[1757325001535,6.21524356,4319.2,4319.1,1e-08]
[1757325003226,0.001,4319.2,4319.1,1e-08]
[1757325003648,3.9,4319.2,4319.1,1e-08]
[1757325005012,6.21524356,4319.2,4319.1,1e-08]
[1757325005641,2.31624356,4319.2,4319.1,1e-08]
[1757325006412,3.23751286,4319.2,4319.1,1e-08]
[1757325007465,3.45472533,4319.2,4319.1,1e-08]
[1757325009252,6.21424356,4319.2,4319.1,1e-08]
[1757325010150,2.31624356,4319.2,4319.1,1e-08]
[1757325010360,6.21424356,4319.2,4319.1,1e-08]
[1757325011429,6.43144721,4319.2,4319.1,1e-08]
[1757325016471,6.43064721,4319.2,4319.1,1e-08]
[1757325016777,7.38273448,4319.2,4319.1,1e-08]
[1757325019248,7.16553083,4319.2,4319.1,1e-08]
[1757325022444,3.8962,4319.2,4319.1,1e-08]
[1757325022646,6.21144356,4319.2,4319.1,1e-08]
[1757325024358,0.0002,4319.2,4319.1,1e-08]
[1757325024568,6.21144356,4319.2,4319.1,1e-08]
[1757325025397,3.8962,4319.2,4319.1,1e-08]
[1757325027848,0.0002,4319.2,4319.1,1e-08]
[1757325041403,2.31544356,4319.2,4319.1,1e-08]
[1757325041798,7.06109693,4319.2,4319.1,1e-08]
[1757325042003,7.06029693,4319.2,4319.1,1e-08]
[1757325053273,2.31464356,4319.2,4319.1,1e-08]
[1757325053575,6.20664356,4319.2,4319.1,1e-08]
[1757325056480,2.31464356,4319.2,4319.1,1e-08]
[1757325056777,6.20764356,4319.2,4319.1,1e-08]
[1757325066289,2.31564356,4319.2,4319.1,1e-08]
[1757325066488,2.31624356,4319.2,4319.1,1e-08]
[1757325067470,2.31544356,4319.2,4319.1,1e-08]
[1757325067864,2.63054356,4319.2,4319.1,1e-08]
[1757325069498,0.0002,4319.2,4319.1,1.24170001]
[1757325069696,6.20544356,4319.2,4319.1,1.24170001]
[1757325070579,0.0002,4319.2,4319.1,0.79840001]
[1757325070785,3.8902,4319.2,4319.1,1.24170001]
[1757325071193,6.20544356,4319.2,4319.1,0.79840001]
[1757325071969,6.20544356,4319.2,4319.1,1.24170001]
[1757325071970,3.8902,4319.2,4319.1,1.24170001]
[1757325072321,6.20544356,4319.2,4319.1,1.24170001]
[1757325072873,6.20544356,4319.2,4319.1,0.79840001]
[1757325073893,6.20544356,4319.2,4319.1,0.30200001]
[1757325074098,6.20544356,4319.2,4319.1,1e-08]
[1757325075111,6.52054356,4319.2,4319.1,1e-08]
[1757325079622,6.52054356,4319.2,4317.8,0.025]
[1757325079780,2.87084031,4317.3,4317.2,0.002]
[1757325079980,13.22105846,4317.3,4317.2,0.002]
[1757325080174,13.22105846,4317.3,4316.8,0.027]
[1757325080175,2.3163959,4317.1,4316.8,0.027]
[1757325080389,5.3164771,4316.9,4316.8,0.027]
[1757325080611,6.52214835,4316.9,4316.8,0.027]
[1757325080815,9.40869568,4316.9,4316.8,1e-08]
[1757325081019,9.53872206,4316.9,4316.8,1e-08]
[1757325081240,9.53873884,4316.9,4316.8,1e-08]
[1757325081447,9.40871246,4316.9,4316.8,1e-08]
[1757325082419,8.90830461,4316.9,4316.8,1e-08]
[1757325083233,9.40603332,4316.9,4316.8,1e-08]
[1757325083536,8.90830461,4316.9,4316.8,1e-08]
[1757325084417,15.09113364,4316.9,4316.1,1e-08]
[1757325084722,8.49968181,4316.2,4316.1,1e-08]
[1757325084923,14.39738673,4316.2,4316.1,1e-08]
[1757325085099,15.61988673,4316.2,4316.1,1e-08]
[1757325085305,17.41355256,4316.2,4316.1,1e-08]
[1757325086928,17.71100714,4316.2,4316.1,1e-08]
[1757325088609,13.81000714,4316.2,4316.1,1e-08]
[1757325088810,17.71100714,4316.2,4316.1,1e-08]
[1757325090738,13.36290714,4316.2,4316.1,1e-08]
[1757325090940,17.26290714,4316.2,4316.1,1e-08]
[1757325091957,17.26290714,4316.2,4316.1,0.00200001]
[1757325092442,10.60537811,4316.2,4316.1,0.00200001]
[1757325092621,4.39430736,4316.2,4316.1,0.76190001]
[1757325092822,8.29250736,4316.2,4316.1,1.21110001]
[1757325093126,8.29250736,4316.2,4316.1,0.76190001]
[1757325093516,8.29250736,4316.2,4316.1,0.00200001]
[1757325094354,5.97545458,4316.2,4316.1,1.21110001]
[1757325094548,8.29230736,4316.2,4316.1,1.21110001]
[1757325095135,4.39430736,4316.2,4316.1,1.21110001]
[1757325095352,2.07745458,4316.2,4316.1,1.21110001]
[1757325095555,5.97545458,4316.2,4316.1,1.21110001]
[1757325099183,5.97545458,4316.2,4316.1,1.20064975]
[1757325100486,2.07745458,4316.2,4316.1,1.20064975]
[1757325100650,0.1152,4317.0,4316.1,10.49238524]
[1757325100851,3.85,4316.9,4316.5,6.18282903]
[1757325101055,3.85,4316.9,4316.8,0.2993]
[1757325101270,0.1152,4317.0,4316.8,1.2091]
[1757325101556,3.896,4316.9,4316.8,1.2091]
[1757325103284,3.895,4317.0,4316.8,1.2091]
[1757325103496,3.895,4317.0,4316.9,0.9098]
[1757325103684,0.21509268,4317.0,4316.9,1.2091]
[1757325103990,3.895,4317.0,4316.9,1.2091]
[1757325104666,0.66977784,4317.3,4316.9,1.2091]
[1757325104993,0.55457784,4317.3,4317.0,0.9098]
[1757325105291,0.21535015,4317.2,4317.0,0.4606]
[1757325105591,0.025,4317.8,4317.7,2.31604789]
[1757325105809,0.22001835,4318.6,4317.8,6.10799425]
[1757325105978,3.8942,4319.2,4317.8,10.97479425]
[1757325106182,3.8942,4319.2,4317.8,11.27409425]
[1757325107570,0.0002,4319.2,4317.8,11.27409425]
[1757325109875,0.001,4318.3,4317.8,11.27409425]
[1757325110379,0.001,4318.3,4318.2,3.10777972]
[1757325110579,0.001,4318.3,4318.2,18.02160875]
[1757325110783,0.001,4318.3,4318.2,19.23070875]
[1757325114428,0.001,4318.3,4318.2,20.34904722]
[1757325115725,0.001,4318.3,4318.2,20.46424722]
[1757325116598,0.001,4318.3,4318.2,20.55696312]
[1757325118348,0.0002,4318.3,4318.2,20.55696312]
[1757325122015,0.0002,4318.3,4318.2,7.30369562]
[1757325122016,0.3005,4318.3,4318.2,7.30369562]
[1757325122350,0.734,4318.3,4318.2,11.24269562]
[1757325122521,0.3005,4318.3,4318.2,12.03469562]
[1757325122854,0.3005,4318.3,4318.2,12.69317972]
[1757325122855,0.0002,4318.3,4318.2,12.69317972]
[1757325123051,0.0002,4318.3,4318.2,13.15607972]
[1757325127974,0.0002,4319.2,4319.1,20.45176466]
[1757325131726,0.0002,4319.2,4319.1,16.51676466]
[1757325131925,0.0002,4319.2,4319.1,20.44876466]
[1757325132726,0.3005,4319.2,4319.1,19.23266466]
[1757325132931,0.3005,4319.2,4319.1,11.13949716]
[1757325132932,1.1991,4319.2,4319.1,11.13949716]
[1757325133429,1.1991,4319.2,4319.1,11.93149716]
[1757325134859,0.3005,4319.2,4319.1,19.23266466]
[1757325135564,0.0002,4319.2,4319.1,19.52876466]
[1757325135763,0.0002,4319.2,4319.1,19.99166466]
[1757325135965,0.0002,4319.2,4319.1,19.52876466]
[1757325136169,0.0002,4319.2,4319.1,19.99166466]
[1757325136462,0.0002,4319.2,4319.1,20.44676466]
[1757325140862,0.0002,4319.2,4319.1,16.05386466]
[1757325141198,0.7656,4319.2,4319.1,4.09429716]
[1757325141374,1.1991,4319.2,4319.1,8.01729716]
[1757325141547,1.1991,4319.2,4319.1,11.80929716]
[1757325141747,0.0002,4319.2,4319.1,11.80929716]
[1757325142480,0.0002,4319.2,4319.1,12.10539716]
[1757325142979,0.0002,4319.2,4319.1,11.80929716]
[1757325143598,0.3038,4319.2,4319.1,11.80929716]
[1757325143899,0.3038,4319.2,4319.1,11.80829716]
[1757325143900,0.77,4319.2,4319.1,11.80829716]
[1757325144199,1.2437,4319.2,4319.1,11.80829716]
[1757325144402,0.0002,4319.7,4319.2,5.31524356]
[1757325144626,0.0002,4319.7,4319.6,10.40819666]
[1757325144897,0.0002,4319.7,4319.6,17.32919666]
[1757325145300,0.0002,4319.7,4319.6,17.63709666]
[1757325145711,0.3038,4319.7,4319.6,10.02802916]
[1757325145901,0.3038,4319.7,4319.6,10.02702916]
[1757325145902,1.2445,4319.7,4319.6,10.02702916]
[1757325146103,1.2445,4319.7,4319.6,6.10702916]
[1757325146417,1.2445,4319.7,4319.6,10.02702916]
[1757325146580,0.7708,4319.7,4319.6,10.02702916]
[1757325146770,1.2445,4319.7,4319.6,6.10702916]
[1757325147101,1.2445,4319.7,4319.6,10.02602916]
[1757325148308,0.0002,4319.7,4319.6,10.02602916]
[1757325149410,1.2445,4319.7,4319.6,3.792]
[1757325149573,1.2445,4319.7,4319.6,10.02502916]
[1757325151275,1.2445,4319.7,4319.6,10.14022916]
[1757325152109,0.3038,4319.7,4319.6,10.14022916]
[1757325152495,0.0002,4319.7,4319.6,10.14022916]
[1757325152697,0.0002,4319.7,4319.6,10.44812916]
[1757325153976,0.0002,4319.7,4319.6,11.36872916]
[1757325154597,0.0002,4319.7,4319.6,10.91472916]
[1757325155101,0.0002,4319.7,4319.6,10.44812916]
[1757325155307,0.0002,4319.7,4319.6,11.36872916]
[1757325156294,0.0002,4319.7,4319.6,6.22222916]
[1757325156598,0.0002,4319.7,4319.6,17.74329666]
[1757325157730,0.3038,4319.7,4319.6,17.43539666]
[1757325158422,0.0002,4319.7,4319.6,18.19729666]